fUSD/lending_fUSD_20240818
["ID","MTS","AMOUNT","RATE_DAILY","PERIOD"]
[335180325,1723939837173,-77.84278417,0.00010999,2]
[335180326,1723939837182,-500.0,0.00010999,2]
[335180327,1723939837192,-500.0,0.00010999,2]
[335180328,1723939837201,-500.0,0.00010999,2]
[335180329,1723939837211,-349.08758389,0.00010999,2]
[335180330,1723939837222,-150.91241611,0.00010999,2]
[335180331,1723939837231,-404.99088666,0.00010999,2]
[335180332,1723939837243,-95.00911334,0.00010999,2]
[335180333,1723939837252,-246.47177043,0.00010999,2]
[335180334,1723939837264,-253.52822957,0.00010999,2]
[335180335,1723939837273,-500.0,0.00010999,2]
[335180336,1723939837283,-24.5528409,0.00010999,2]
[335180337,1723939837304,-561.27,0.00010998,2]
[335180338,1723939837313,-475.4471591,0.00010999,2]
[335180339,1723939837323,-500.0,0.00010999,2]
[335180340,1723939837332,-500.0,0.00010999,2]
[335180341,1723939837343,-475.97090263,0.00010999,2]
[335180342,1723939837354,-2791.85,0.00010999,2]
[335180343,1723939837368,-427.15485177,0.00010999,2]
[335180344,1723939837379,-768.34821568,0.00010999,2]
[335180347,1723939837993,-2388.94041669,0.0001041,2]
[335180350,1723939838046,-1698.03970922,0.0001041,2]
[335180351,1723939838058,-1632.9959002,0.0001041,2]
[335180352,1723939838100,-1079.19611686,0.0001041,2]
[335180353,1723939838111,-965.47893929,0.0001041,2]
[335180354,1723939838124,-2235.34891774,0.0001041,2]
[335180355,1723939838133,-11770.59243884,0.00010839,2]
[335180356,1723939838145,-1919.49092263,0.00010839,2]
[335180357,1723939838162,-8078.91663853,0.00010839,2]
[335180358,1723939838171,-1596.34693255,0.00010999,2]
[335180359,1723939838180,-846.12769958,0.00010999,2]
[335180360,1723939838209,-1107.2408442,0.0001041,2]
[335180362,1723939838221,-8892.7591558,0.0001041,2]
[335180363,1723939838230,-1945.72230042,0.00010999,2]
[335180364,1723939838239,-2791.85,0.00010999,2]
[335180365,1723939838249,-2791.85,0.00010999,2]
[335180366,1723939838259,-2755.09051889,0.00010999,2]
[335180389,1723939840165,-760.11591725,0.0001041,2]
[335180390,1723939840177,-401.71205352,0.0001041,2]
[335180391,1723939840190,-3333.99104239,0.0001041,2]
[335180392,1723939840205,-5504.18098684,0.0001041,2]
[335180393,1723939840218,-170.79932157,0.000109,2]
[335180394,1723939840230,-36.75948111,0.00010999,2]
[335180395,1723939840242,-2791.85,0.00010999,2]
[335180396,1723939840252,-2791.85,0.00010999,2]
[335180397,1723939840262,-2791.85,0.00010999,2]
[335180398,1723939840275,-2791.85,0.00010999,2]
[335180399,1723939840287,-2791.85,0.00010999,2]
[335180400,1723939840303,-2791.85,0.00010999,2]
[335180401,1723939840315,-2791.85,0.00010999,2]
[335180402,1723939840327,-2791.85,0.00010999,2]
[335180403,1723939840340,-2791.85,0.00010999,2]
[335180404,1723939840352,-2791.85,0.00010999,2]
[335180405,1723939840366,-2791.85,0.00010999,2]
[335180406,1723939840379,-2791.85,0.00010999,2]
[335180407,1723939840391,-2791.85,0.00010999,2]
[335180408,1723939840402,-2791.87962795,0.00010999,2]
[335180409,1723939840413,-659.82,0.00010999,2]
[335180410,1723939840425,-659.82,0.00010999,2]
[335180411,1723939840436,-659.82,0.00010999,2]
[335180412,1723939840449,-659.82,0.00010999,2]
[335180413,1723939840460,-659.82,0.00010999,2]
[335180414,1723939840471,-659.82,0.00010999,2]
[335180415,1723939840483,-659.82,0.00010999,2]
[335180416,1723939840493,-659.82,0.00010999,2]
[335180418,1723939840503,-659.82,0.00010999,2]
[335180420,1723939840513,-659.82,0.00010999,2]
[335180421,1723939840524,-659.82,0.00010999,2]
[335180422,1723939840535,-659.82,0.00010999,2]
[335180423,1723939840546,-659.82,0.00010999,2]
[335180426,1723939840558,-659.82,0.00010999,2]
[335180428,1723939840570,-659.82,0.00010999,2]
[335180430,1723939840581,-659.82,0.00010999,2]
[335180431,1723939840593,-659.82,0.00010999,2]
[335180433,1723939840605,-659.82,0.00010999,2]
[335180435,1723939840617,-660.05952189,0.00010999,2]
[335180437,1723939840629,-1347.61,0.00010999,2]
[335180439,1723939840641,-1347.61,0.00010999,2]
[335180441,1723939840650,-897.56,0.00010999,2]
[335180443,1723939840660,-1347.61,0.00010999,2]
[335180446,1723939840671,-897.56,0.00010999,2]
[335180448,1723939840681,-897.56,0.00010999,2]
[335180450,1723939840691,-1347.61,0.00010999,2]
[335180451,1723939840703,-897.56,0.00010999,2]
[335180452,1723939840716,-1347.61,0.00010999,2]
[335180453,1723939840728,-897.56,0.00010999,2]
[335180454,1723939840739,-1347.61,0.00010999,2]
[335180455,1723939840750,-897.56,0.00010999,2]
[335180456,1723939840762,-897.56,0.00010999,2]
[335180457,1723939840772,-1347.61,0.00010999,2]
[335180458,1723939840783,-897.56,0.00010999,2]
[335180459,1723939840798,-1347.61,0.00010999,2]
[335180460,1723939840810,-897.56,0.00010999,2]
[335180461,1723939840819,-1347.61,0.00010999,2]
[335180462,1723939840829,-897.56,0.00010999,2]
[335180463,1723939840839,-1347.61,0.00010999,2]
[335180464,1723939840850,-897.56,0.00010999,2]
[335180465,1723939840860,-1347.61,0.00010999,2]
[335180466,1723939840871,-897.56,0.00010999,2]
[335180467,1723939840888,-1347.61,0.00010999,2]
[335180468,1723939840911,-897.56,0.00010999,2]
[335180469,1723939840934,-1347.61,0.00010999,2]
[335180470,1723939840957,-897.56,0.00010999,2]
[335180471,1723939840980,-1347.61,0.00010999,2]
[335180472,1723939841005,-897.56,0.00010999,2]
[335180473,1723939841029,-1347.61,0.00010999,2]
[335180474,1723939841053,-897.56,0.00010999,2]
[335180475,1723939841080,-897.56,0.00010999,2]
[335180476,1723939841100,-1347.61,0.00010999,2]
[335180477,1723939841125,-1347.61,0.00010999,2]
[335180478,1723939841136,-897.56,0.00010999,2]
[335180479,1723939841147,-1347.61,0.00010999,2]
[335180480,1723939841158,-897.56,0.00010999,2]
[335180481,1723939841168,-1347.69363532,0.00010999,2]
[335180482,1723939841179,-897.66,0.00010999,2]
[335180483,1723939841189,-678.67,0.00010999,2]
[335180484,1723939841200,-678.67,0.00010999,2]
[335180485,1723939841211,-678.67,0.00010999,2]
[335180486,1723939841222,-678.67,0.00010999,2]
[335180487,1723939841232,-678.67,0.00010999,2]
[335180488,1723939841243,-678.67,0.00010999,2]
[335180489,1723939841254,-678.67,0.00010999,2]
[335180490,1723939841264,-678.67,0.00010999,2]
[335180491,1723939841276,-678.67,0.00010999,2]
[335180492,1723939841291,-678.67,0.00010999,2]
[335180493,1723939841304,-678.67,0.00010999,2]
[335180494,1723939841315,-678.67,0.00010999,2]
[335180495,1723939841325,-678.67,0.00010999,2]
[335180496,1723939841337,-678.67,0.00010999,2]
[335180497,1723939841347,-678.67,0.00010999,2]
[335180498,1723939841359,-678.67,0.00010999,2]
[335180499,1723939841370,-678.67,0.00010999,2]
[335180500,1723939841381,-678.67,0.00010999,2]
[335180501,1723939841394,-678.77,0.00010999,2]
[335180502,1723939841405,-1092.76,0.00010999,2]
[335180503,1723939841426,-1092.76,0.00010999,2]
[335180504,1723939841443,-1092.76,0.00010999,2]
[335180505,1723939841456,-1092.76,0.00010999,2]
[335180506,1723939841468,-1092.76,0.00010999,2]
[335180507,1723939841483,-1092.76,0.00010999,2]
[335180508,1723939841495,-1092.76,0.00010999,2]
[335180509,1723939841508,-364.6215362,0.00010999,2]
[335180510,1723939841526,-1092.76,0.00010999,2]
[335180511,1723939841559,-1092.76,0.00010999,2]
[335180512,1723939841586,-1092.76,0.00010999,2]
[335180513,1723939841613,-1092.76,0.00010999,2]
[335180514,1723939841641,-1092.76,0.00010999,2]
[335180515,1723939841671,-1092.76,0.00010999,2]
[335180516,1723939841701,-1092.76,0.00010999,2]
[335180517,1723939841726,-1092.76,0.00010999,2]
[335180518,1723939841752,-1092.76,0.00010999,2]
[335180519,1723939841768,-1092.76,0.00010999,2]
[335180520,1723939841779,-1092.76,0.00010999,2]
[335180521,1723939841792,-1092.76,0.00010999,2]
[335180522,1723939841803,-1092.93579058,0.00010999,2]
[335180523,1723939841814,-5245.4,0.00010999,2]
[335180524,1723939841826,-5245.4,0.00010999,2]
[335180525,1723939841837,-5245.4,0.00010999,2]
[335180526,1723939841848,-5245.4,0.00010999,2]
[335180527,1723939841859,-5245.4,0.00010999,2]
[335180528,1723939841871,-5245.4,0.00010999,2]
[335180529,1723939841883,-5245.4,0.00010999,2]
[335180530,1723939841895,-5245.4,0.00010999,2]
[335180531,1723939841906,-5245.4,0.00010999,2]
[335180532,1723939841917,-5245.4,0.00010999,2]
[335180533,1723939841928,-5245.4,0.00010999,2]
[335180534,1723939841938,-5245.4,0.00010999,2]
[335180535,1723939841949,-5245.4,0.00010999,2]
[335180536,1723939841960,-5245.4,0.00010999,2]
[335180537,1723939841971,-5245.4,0.00010999,2]
[335180538,1723939841982,-5245.4,0.00010999,2]
[335180539,1723939841994,-5245.4,0.00010999,2]
[335180540,1723939842006,-539.02,0.00010999,2]
[335180541,1723939842017,-5245.4,0.00010999,2]
[335180542,1723939842028,-539.02,0.00010999,2]
[335180543,1723939842041,-5245.4,0.00010999,2]
[335180544,1723939842051,-539.02,0.00010999,2]
[335180545,1723939842062,-5245.57419123,0.00010999,2]
[335180546,1723939842071,-539.02,0.00010999,2]
[335180547,1723939842083,-539.02,0.00010999,2]
[335180548,1723939842093,-539.02,0.00010999,2]
[335180549,1723939842105,-539.02,0.00010999,2]
[335180550,1723939842116,-539.02,0.00010999,2]
[335180551,1723939842127,-539.02,0.00010999,2]
[335180552,1723939842139,-539.02,0.00010999,2]
[335180553,1723939842149,-539.02,0.00010999,2]
[335180554,1723939842158,-539.02,0.00010999,2]
[335180555,1723939842167,-539.02,0.00010999,2]
[335180556,1723939842177,-539.02,0.00010999,2]
[335180557,1723939842187,-539.02,0.00010999,2]
[335180558,1723939842198,-539.02,0.00010999,2]
[335180559,1723939842208,-539.02,0.00010999,2]
[335180560,1723939842220,-539.02,0.00010999,2]
[335180561,1723939842231,-539.15066985,0.00010999,2]
[335180562,1723939842242,-761.81,0.00010999,2]
[335180563,1723939842251,-761.81,0.00010999,2]
[335180564,1723939842261,-761.81,0.00010999,2]
[335180565,1723939842270,-761.81,0.00010999,2]
[335180566,1723939842279,-761.81,0.00010999,2]
[335180567,1723939842290,-761.81,0.00010999,2]
[335180568,1723939842301,-761.81,0.00010999,2]
[335180569,1723939842311,-761.81,0.00010999,2]
[335180570,1723939842320,-761.81,0.00010999,2]
[335180571,1723939842573,-761.81,0.00010999,2]
[335180572,1723939842591,-761.81,0.00010999,2]
[335180573,1723939842601,-761.81,0.00010999,2]
[335180574,1723939842611,-761.81,0.00010999,2]
[335180575,1723939842620,-761.81,0.00010999,2]
[335180576,1723939842629,-761.81,0.00010999,2]
[335180577,1723939842638,-761.81,0.00010999,2]
[335180578,1723939842647,-761.81,0.00010999,2]
[335180579,1723939842657,-761.81,0.00010999,2]
[335180580,1723939842666,-761.81,0.00010999,2]
[335180581,1723939842676,-761.98555754,0.00010999,2]
[335180582,1723939842685,-500.19,0.00010999,2]
[335180583,1723939842694,-500.19,0.00010999,2]
[335180584,1723939842703,-500.19,0.00010999,2]
[335180585,1723939842712,-500.19,0.00010999,2]
[335180586,1723939842721,-500.19,0.00010999,2]
[335180587,1723939842730,-500.19,0.00010999,2]
[335180588,1723939842739,-4670.76,0.00010999,2]
[335180589,1723939842748,-500.19,0.00010999,2]
[335180590,1723939842757,-4670.76,0.00010999,2]
[335180591,1723939842767,-500.19,0.00010999,2]
[335180592,1723939842775,-4670.76,0.00010999,2]
[335180593,1723939842786,-500.19,0.00010999,2]
[335180595,1723939842795,-4670.76,0.00010999,2]
[335180596,1723939842804,-500.19,0.00010999,2]
[335180597,1723939842813,-4670.76,0.00010999,2]
[335180598,1723939842822,-500.19,0.00010999,2]
[335180599,1723939842835,-4670.76,0.00010999,2]
[335180600,1723939842846,-500.19,0.00010999,2]
[335180601,1723939842855,-500.19,0.00010999,2]
[335180602,1723939842864,-4670.76,0.00010999,2]
[335180603,1723939842874,-500.19,0.00010999,2]
[335180605,1723939842884,-500.19,0.00010999,2]
[335180606,1723939842895,-3280.39967992,0.00010999,2]
[335180608,1723939843074,-1390.36032008,0.00010999,2]
[335180609,1723939843084,-500.19,0.00010999,2]
[335180610,1723939843095,-4670.76,0.00010999,2]
[335180611,1723939843105,-500.19,0.00010999,2]
[335180612,1723939843115,-4670.76,0.00010999,2]
[335180613,1723939843124,-656.92,0.00010999,2]
[335180614,1723939843133,-500.19,0.00010999,2]
[335180615,1723939843142,-1951.21853121,0.00010999,2]
[335180616,1723939843154,-2719.54146879,0.00010999,2]
[335180617,1723939843163,-656.92,0.00010999,2]
[335180618,1723939843172,-500.19,0.00010999,2]
[335180619,1723939843181,-976.4485311,0.00010999,2]
[335180620,1723939843193,-3694.3114689,0.00010999,2]
[335180621,1723939843202,-656.92,0.00010999,2]
[335180622,1723939843211,-500.23,0.00010999,2]
[335180623,1723939843220,-74.06699532,0.00010999,2]
[335180624,1723939843231,-4596.69300468,0.00010999,2]
[335180625,1723939843240,-656.92,0.00010999,2]
[335180626,1723939843249,-1061.73244282,0.00010999,2]
[335180627,1723939843264,-3285.42717412,0.00010999,2]
[335180628,1723939843275,-323.60038306,0.00010999,2]
[335180629,1723939843287,-656.92,0.00010999,2]
[335180630,1723939843300,-2970.7301976,0.00010999,2]
[335180631,1723939843311,-1700.0298024,0.00010999,2]
[335180632,1723939843321,-656.92,0.00010999,2]
[335180633,1723939843330,-4670.76,0.00010999,2]
[335180634,1723939843340,-656.92,0.00010999,2]
[335180635,1723939843350,-3538.29815028,0.00010999,2]
[335180636,1723939843361,-1132.46184972,0.00010999,2]
[335180637,1723939843372,-656.92,0.00010999,2]
[335180639,1723939843381,-3408.7844968,0.00010999,2]
[335180640,1723939843392,-1261.9755032,0.00010999,2]
[335180641,1723939843401,-1120.7265893,0.00010999,2]
[335180642,1723939843412,-654.64903538,0.00010999,2]
[335180643,1723939843427,-1115.71022667,0.00010999,2]
[335180645,1723939843439,-1779.67414865,0.00010999,2]
[335180647,1723939843448,-1703.29192231,0.00010999,2]
[335180649,1723939843459,-647.526547,0.00010999,2]
[335180651,1723939843469,-739.70005,0.00010999,2]
[335180653,1723939843481,-669.21960628,0.00010999,2]
[335180657,1723939843522,-2846.91532458,0.0001041,2]
[335180658,1723939843531,-182.73467542,0.00010999,2]
[335180659,1723939843542,-728.44280719,0.00010999,2]
[335180660,1723939843551,-656.92,0.00010999,2]
[335180661,1723939843560,-656.92,0.00010999,2]
[335180662,1723939843569,-656.92,0.00010999,2]
[335180663,1723939843578,-656.92,0.00010999,2]
[335180664,1723939843587,-656.92,0.00010999,2]
[335180665,1723939843595,-656.92,0.00010999,2]
[335180666,1723939843604,-656.92,0.00010999,2]
[335180667,1723939843613,-656.92,0.00010999,2]
[335180668,1723939843622,-656.92,0.00010999,2]
[335180669,1723939843631,-656.92,0.00010999,2]
[335180670,1723939843639,-656.95010814,0.00010999,2]
[335180671,1723939843648,-500.0,0.00010999,2]
[335180672,1723939843657,-500.0,0.00010999,2]
[335180673,1723939843666,-500.0,0.00010999,2]
[335180674,1723939843675,-500.0,0.00010999,2]
[335180675,1723939843684,-500.0,0.00010999,2]
[335180676,1723939843693,-182.22,0.00010999,2]
[335180677,1723939843701,-650.07,0.00010999,2]
[335180678,1723939843710,-650.07,0.00010999,2]
[335180679,1723939843719,-650.07,0.00010999,2]
[335180680,1723939843728,-650.07,0.00010999,2]
[335180681,1723939843737,-650.07,0.00010999,2]
[335180682,1723939843746,-650.07,0.00010999,2]
[335180683,1723939843755,-650.07,0.00010999,2]
[335180684,1723939843764,-650.07,0.00010999,2]
[335180685,1723939843772,-650.07,0.00010999,2]
[335180686,1723939843781,-650.07,0.00010999,2]
[335180687,1723939843791,-650.07,0.00010999,2]
[335180688,1723939843800,-650.07,0.00010999,2]
[335180689,1723939843811,-650.07,0.00010999,2]
[335180690,1723939843820,-650.07,0.00010999,2]
[335180691,1723939843830,-650.07,0.00010999,2]
[335180692,1723939843841,-381.78284262,0.00010999,2]
[335180693,1723939843857,-268.28715738,0.00010999,2]
[335180694,1723939843868,-650.07,0.00010999,2]
[335180695,1723939843879,-650.07,0.00010999,2]
[335180696,1723939843888,-650.27,0.00010999,2]
[335180697,1723939843897,-897.77,0.00010999,2]
[335180698,1723939843907,-897.77,0.00010999,2]
[335180699,1723939843917,-897.77,0.00010999,2]
[335180700,1723939843926,-897.77,0.00010999,2]
[335180701,1723939843937,-897.77,0.00010999,2]
[335180702,1723939843947,-897.77,0.00010999,2]
[335180703,1723939843957,-897.77,0.00010999,2]
[335180704,1723939843967,-897.77,0.00010999,2]
[335180705,1723939843976,-897.77,0.00010999,2]
[335180706,1723939843987,-897.77,0.00010999,2]
[335180707,1723939843998,-897.77,0.00010999,2]
[335180708,1723939844007,-897.77,0.00010999,2]
[335180709,1723939844016,-897.77,0.00010999,2]
[335180710,1723939844028,-897.77,0.00010999,2]
[335180711,1723939844038,-897.77,0.00010999,2]
[335180712,1723939844047,-897.77,0.00010999,2]
[335180713,1723939844056,-897.77,0.00010999,2]
[335180714,1723939844065,-897.77,0.00010999,2]
[335180715,1723939844074,-897.9,0.00010999,2]
[335180716,1723939844084,-500.0,0.00010999,2]
[335180717,1723939844093,-500.0,0.00010999,2]
[335180718,1723939844102,-500.0,0.00010999,2]
[335180719,1723939844111,-500.0,0.00010999,2]
[335180720,1723939844120,-500.0,0.00010999,2]
[335180721,1723939844129,-500.0,0.00010999,2]
[335180722,1723939844138,-500.0,0.00010999,2]
[335180723,1723939844146,-500.0,0.00010999,2]
[335180724,1723939844155,-500.0,0.00010999,2]
[335180725,1723939844164,-500.0,0.00010999,2]
[335180726,1723939844173,-500.0,0.00010999,2]
[335180727,1723939844182,-198.36769612,0.00010999,2]
[335180728,1723939844191,-1625.21,0.00010999,2]
[335180729,1723939844200,-1625.21,0.00010999,2]
[335180730,1723939844209,-1625.21,0.00010999,2]
[335180731,1723939844218,-1625.21,0.00010999,2]
[335180732,1723939844226,-1625.21,0.00010999,2]
[335180733,1723939844235,-1625.21,0.00010999,2]
[335180734,1723939844245,-1625.21,0.00010999,2]
[335180735,1723939844254,-1625.21,0.00010999,2]
[335180736,1723939844263,-1625.21,0.00010999,2]
[335180737,1723939844272,-1625.21,0.00010999,2]
[335180738,1723939844281,-1625.21,0.00010999,2]
[335180739,1723939844292,-1625.21,0.00010999,2]
[335180740,1723939844302,-1625.21,0.00010999,2]
[335180741,1723939844311,-1625.21,0.00010999,2]
[335180742,1723939844320,-1625.21,0.00010999,2]
[335180743,1723939844331,-1625.21,0.00010999,2]
[335180744,1723939844340,-1625.21,0.00010999,2]
[335180745,1723939844349,-797.92,0.00010999,2]
[335180746,1723939844359,-797.92,0.00010999,2]
[335180747,1723939844369,-1625.21,0.00010999,2]
[335180748,1723939844378,-797.92,0.00010999,2]
[335180749,1723939844388,-1625.23498645,0.00010999,2]
[335180750,1723939844397,-797.92,0.00010999,2]
[335180751,1723939844406,-797.92,0.00010999,2]
[335180752,1723939844415,-797.92,0.00010999,2]
[335180753,1723939844424,-797.92,0.00010999,2]
[335180754,1723939844435,-797.92,0.00010999,2]
[335180755,1723939844445,-678.29,0.00010999,2]
[335180756,1723939844455,-797.92,0.00010999,2]
[335180757,1723939844465,-797.92,0.00010999,2]
[335180758,1723939844475,-678.29,0.00010999,2]
[335180759,1723939844484,-797.92,0.00010999,2]
[335180760,1723939844494,-797.92,0.00010999,2]
[335180761,1723939844504,-678.29,0.00010999,2]
[335180762,1723939844514,-797.92,0.00010999,2]
[335180763,1723939844523,-678.29,0.00010999,2]
[335180764,1723939844533,-797.92,0.00010999,2]
[335180765,1723939844543,-678.29,0.00010999,2]
[335180766,1723939844551,-678.29,0.00010999,2]
[335180767,1723939844560,-189.24126892,0.00010999,2]
[335180768,1723939845735,-608.67873108,0.00010999,2]
[335180769,1723939845745,-678.29,0.00010999,2]
[335180770,1723939845755,-797.92,0.00010999,2]
[335180771,1723939845765,-678.29,0.00010999,2]
[335180772,1723939845774,-550.43038188,0.00010999,2]
[335180773,1723939845789,-247.48961812,0.00010999,2]
[335180774,1723939845799,-278.53038188,0.00010999,2]
[335180775,1723939845810,-399.75961812,0.00010999,2]
[335180776,1723939845820,-797.92,0.00010999,2]
[335180777,1723939845829,-678.29,0.00010999,2]
[335180778,1723939845839,-797.97127124,0.00010999,2]
[335180779,1723939845853,-678.29,0.00010999,2]
[335180780,1723939845864,-678.29,0.00010999,2]
[335180781,1723939845874,-678.29,0.00010999,2]
[335180782,1723939845885,-678.29,0.00010999,2]
[335180783,1723939845895,-678.29,0.00010999,2]
[335180784,1723939845905,-678.29,0.00010999,2]
[335180785,1723939845916,-678.29,0.00010999,2]
[335180786,1723939845927,-678.29,0.00010999,2]
[335180787,1723939845937,-678.47569687,0.00010999,2]
[335180788,1723939845948,-2024.8,0.00010999,2]
[335180790,1723939845958,-2024.8,0.00010999,2]
[335180792,1723939845970,-2024.8,0.00010999,2]
[335180793,1723939845981,-2010.30414049,0.00010999,2]
[335180794,1723939846112,-218.2970397,0.000109,2]
[335180795,1723939846122,-14.49585951,0.00010999,2]
[335180796,1723939846132,-1538.48949685,0.00010999,2]
[335180797,1723939846144,-486.31050315,0.00010999,2]
[335180798,1723939846154,-2024.8,0.00010999,2]
[335180799,1723939846163,-296.70696687,0.00010999,2]
[335180800,1723939846322,-1728.09303313,0.00010999,2]
[335180801,1723939846333,-2024.8,0.00010999,2]
[335180802,1723939846343,-2024.8,0.00010999,2]
[335180803,1723939846353,-2024.8,0.00010999,2]
[335180804,1723939846362,-2024.8,0.00010999,2]
[335180805,1723939846372,-2024.8,0.00010999,2]
[335180807,1723939846382,-2024.8,0.00010999,2]
[335180808,1723939846391,-2024.8,0.00010999,2]
[335180810,1723939846401,-2024.8,0.00010999,2]
[335180811,1723939846411,-2024.8,0.00010999,2]
[335180812,1723939846420,-2024.8,0.00010999,2]
[335180813,1723939846429,-2024.8,0.00010999,2]
[335180814,1723939846439,-2024.83357821,0.00010999,2]
[335180815,1723939846448,-500.0,0.00010999,2]
[335180816,1723939846458,-500.0,0.00010999,2]
[335180817,1723939846468,-500.0,0.00010999,2]
[335180818,1723939846478,-500.0,0.00010999,2]
[335180819,1723939846487,-500.0,0.00010999,2]
[335180820,1723939846497,-500.0,0.00010999,2]
[335180821,1723939846507,-500.0,0.00010999,2]
[335180822,1723939846516,-500.0,0.00010999,2]
[335180823,1723939846526,-500.0,0.00010999,2]
[335180824,1723939846536,-500.0,0.00010999,2]
[335180825,1723939846545,-342.24488706,0.00010999,2]
[335180826,1723939846555,-561.27,0.00010999,2]
[335180827,1723939846564,-561.27,0.00010999,2]
[335180828,1723939846574,-561.27,0.00010999,2]
[335180829,1723939846584,-561.27,0.00010999,2]
[335180830,1723939846594,-561.27,0.00010999,2]
[335180831,1723939846604,-561.27,0.00010999,2]
[335180832,1723939846614,-287.66951034,0.00010999,2]
[335180833,1723939846626,-273.60048966,0.00010999,2]
[335180834,1723939846636,-561.27,0.00010999,2]
[335180835,1723939846646,-561.27,0.00010999,2]
[335180836,1723939846655,-147.44464475,0.00010999,2]
[335180839,1723939874403,621.52,9.241e-05,2]
[335180840,1723939891436,150.0,0.00015457,120]
[335180851,1723940431207,620.36,8.219e-05,2]
[335180852,1723940460150,150761.69181593,9.241e-05,2]
[335180853,1723940460828,30232.30058691,9.241e-05,2]
[335180855,1723940515079,1000.0,9.968e-05,2]
[335180856,1723940550759,150.0,0.0001466,120]
[335180857,1723940613633,305.18,9.978e-05,2]
[335180858,1723940620526,2112.33,9.982e-05,2]
[335180860,1723940737378,250.0,9.945e-05,2]
[335180878,1723940864937,803.37,9.935e-05,2]
[335180896,1723941003125,200.0,9.937e-05,2]
[335180897,1723941029724,260.26,9.945e-05,2]
[335180903,1723941032217,-550.0,0.0001,2]
[335180904,1723941032226,-165.44,0.00010041,2]
[335180905,1723941032236,-174.67,0.0001019,2]
[335180906,1723941032246,-1561.64656894,0.0001038,2]
[335180907,1723941032255,-300.0,0.00010477,2]
[335180908,1723941032264,-300.0,0.00010477,2]
[335180909,1723941032273,-203.13312729,0.00010478,2]
[335180913,1723941038153,-417.22687271,0.00010478,2]
[335180914,1723941038162,-2631.68477508,0.00010478,2]
[335180924,1723941038335,-2944.34240302,0.00010478,2]
[335180926,1723941038346,-9101.3781579,0.00010478,2]
[335180928,1723941038358,-8693.51986952,0.00010478,2]
[335180930,1723941038369,-1218.12342002,0.00010478,2]
[335180932,1723941038378,-163.11745934,0.0001048,2]
[335180934,1723941038389,-3166.04903559,0.0001048,2]
[335180936,1723941038400,-770.18156741,0.0001048,2]
[335180939,1723941038419,-619.754369,0.0001048,2]
[335180941,1723941038428,-3033.1703475,0.00010566,2]
[335180943,1723941038437,-1000.0,0.00010735,2]
[335180945,1723941038447,-150.99,0.00010735,2]
[335180948,1723941038456,-364.02,0.00010735,2]
[335180950,1723941038465,-461.3985,0.000108,2]
[335180952,1723941038474,-150.0,0.00010833,2]
[335180954,1723941038484,-500.0,0.00010834,2]
[335180956,1723941038493,-500.0,0.00010834,2]
[335180958,1723941038502,-500.0,0.00010834,2]
[335180960,1723941038511,-500.0,0.00010834,2]
[335180962,1723941038520,-500.0,0.00010834,2]
[335180964,1723941038531,-500.0,0.00010834,2]
[335180966,1723941038541,-618.7663198,0.00010834,2]
[335180968,1723941038549,-500.0,0.00010834,2]
[335180970,1723941038559,-500.0,0.00010834,2]
[335180972,1723941038567,-500.0,0.00010834,2]
[335180974,1723941038576,-500.0,0.00010834,2]